Workbook

Sheet Legend
A1: Dataset EV19. Prediction quality metrics for 6 annotation tools. This table includes different validation sets and combinations of them (columns A and B). For each set, we described the size (C) and the total number predicted as positive in that set for the 6 annotation tools compared in this work (columns D to I). Columns J to O use these values to compute standard metrics as the True Positive Rate (TPR) and the False Positive Rate. An additional table below presents the combined metrics used to compare, represented by the Accuracy and the AUC of the 6 tools (D to I)

Sheet DatasetEV19_Prediction_metrics_compa
J1: Discovery rate || for positive set True Positive Rate = TP/TP+FN || for negative set False Positive Rate = FP/FP+TN
D3: Total predicted as positive
C4: Original DB size(not annotated proteins) | D4: BASys | E4: CPC | F4: GeneMarkS | G4: Glimmer | H4: Prodigal | I4: RanSEPs | J4: BASys | K4: CPC | L4: GeneMarkS | M4: Glimmer | N4: Prodigal | O4: RanSEPs
A5: Positive set | B5: Total | C5: 570 | D5: 372 | E5: 48 | F5: 435 | G5: 43 | H5: 391 | I5: 489 | J5: =D5/C5*100 -> 65.26315789 | K5: =E5/C5*100 -> 8.421052632 | L5: =F5/C5*100 -> 76.31578947 | M5: =G5/C5*100 -> 7.543859649 | N5: =H5/C5*100 -> 68.59649123 | O5: =I5/C5*100 -> 85.78947368
B6: Annotated | C6: 438 | D6: 283 | E6: 37 | F6: 337 | G6: 25 | H6: 302 | I6: 380 | J6: =D6/C6*100 -> 64.61187215 | K6: =E6/C6*100 -> 8.447488584 | L6: =F6/C6*100 -> 76.94063927 | M6: =G6/C6*100 -> 5.707762557 | N6: =H6/C6*100 -> 68.94977169 | O6: =I6/C6*100 -> 86.75799087
B7: Annotated in a different strain | C7: 87 | D7: 64 | E7: 8 | F7: 67 | G7: 10 | H7: 60 | I7: 71 | J7: =D7/C7*100 -> 73.56321839 | K7: =E7/C7*100 -> 9.195402299 | L7: =F7/C7*100 -> 77.01149425 | M7: =G7/C7*100 -> 11.49425287 | N7: =H7/C7*100 -> 68.96551724 | O7: =I7/C7*100 -> 81.6091954
B8: MS >=2 UTPs | C8: 473 | D8: 370 | E8: 46 | F8: 371 | G8: 33 | H8: 351 | I8: 410 | J8: =D8/C8*100 -> 78.22410148 | K8: =E8/C8*100 -> 9.725158562 | L8: =F8/C8*100 -> 78.43551797 | M8: =G8/C8*100 -> 6.976744186 | N8: =H8/C8*100 -> 74.20718816 | O8: =I8/C8*100 -> 86.6807611
B9: C13 labelled | C9: 10 | D9: 3 | E9: 1 | F9: 3 | G9: 1 | H9: 5 | I9: 10 | J9: =D9/C9*100 -> 30 | K9: =E9/C9*100 -> 10 | L9: =F9/C9*100 -> 30 | M9: =G9/C9*100 -> 10 | N9: =H9/C9*100 -> 50 | O9: =I9/C9*100 -> 100
B10: Potential new SEPs | C10: 25 | D10: 10 | E10: 2 | F10: 14 | G10: 8 | H10: 10 | I10: 19 | J10: =D10/C10*100 -> 40 | K10: =E10/C10*100 -> 8 | L10: =F10/C10*100 -> 56 | M10: =G10/C10*100 -> 32 | N10: =H10/C10*100 -> 40 | O10: =I10/C10*100 -> 76
A11: Negative subset | B11: Total | C11: 570 | D11: 24 | E11: 2 | F11: 79 | G11: 49 | H11: 66 | I11: 39 | J11: =D11/C11*100 -> 4.210526316 | K11: =E11/C11*100 -> 0.350877193 | L11: =F11/C11*100 -> 13.85964912 | M11: =G11/C11*100 -> 8.596491228 | N11: =H11/C11*100 -> 11.57894737 | O11: =I11/C11*100 -> 6.842105263
B12: Potential non-coding smORFs | C12: 556 | D12: 24 | E12: 2 | F12: 75 | G12: 49 | H12: 66 | I12: 39 | J12: =D12/C12*100 -> 4.316546763 | K12: =E12/C12*100 -> 0.3597122302 | L12: =F12/C12*100 -> 13.48920863 | M12: =G12/C12*100 -> 8.81294964 | N12: =H12/C12*100 -> 11.8705036 | O12: =I12/C12*100 -> 7.014388489
B13: C13 labelled | C13: 14 | D13: 0 | E13: 0 | F13: 4 | G13: 0 | H13: 0 | I13: 0 | J13: =D13/C13*100 -> 0 | K13: =E13/C13*100 -> 0 | L13: =F13/C13*100 -> 28.57142857 | M13: =G13/C13*100 -> 0 | N13: =H13/C13*100 -> 0 | O13: =I13/C13*100 -> 0
A14: Negative set | B14: >=2 HR_UTPs; no MS; no conserved | C14: 14746 | D14: 530 | E14: 5 | F14: 579 | G14: 50 | H14: 744 | I14: 629 | J14: =D14/C14*100 -> 3.594195036 | K14: =E14/C14*100 -> 0.03390750034 | L14: =F14/C14*100 -> 3.926488539 | M14: =G14/C14*100 -> 0.3390750034 | N14: =H14/C14*100 -> 5.04543605 | O14: =I14/C14*100 -> 4.265563543
A16: Accuracy (Correctly predicted/total) | B16: test set | C16: 1140 | D16: =100*(D5+(570-D11))/1140 -> 80.52631579 | E16: =100*(E5+(570-E11))/1140 -> 54.03508772 | F16: =100*(F5+(570-F11))/1140 -> 81.22807018 | G16: =100*(G5+(570-G11))/1140 -> 49.47368421 | H16: =100*(H5+(570-H11))/1140 -> 78.50877193 | I16: =100*(I5+(570-I11))/1140 -> 89.47368421
A17: Area Under the ROC Curve | B17: test set | C17: 1140 | D17: 0.81 | E17: 0.76 | F17: 0.81 | G17: 0.67 | H17: 0.84 | I17: 0.95
